[Event "FIDE World Rapid Chess Championship 2021"]
[White "Grischuk, Alexander"]
[Black "Demidov, Mikhail"]
[WhiteFideId "4126025"]
[BlackFideId "4197143"]
[WhiteElo "2763"]
[BlackElo "2544"]
[Result "1-0"]
[Round "02"]
[TimeControl "900+10"]
[Date "2021.12.26"]
[WhiteClock "0:00:25"]
[BlackClock "0:01:33"]

1. e4 {[%clk 0:15:15]}  e6 {[%clk 0:15:14]} 2. d4 {[%clk 0:15:21]}  d5 {[%clk 0:15:21]} 3. Nc3 {[%clk 0:15:02]}  Be7 {[%clk 0:15:21]} 4. Nf3 {[%clk 0:13:35]}  Nf6 {[%clk 0:15:28]} 5. Bd3 {[%clk 0:13:38]}  c5 {[%clk 0:15:03]} 6. exd5 {[%clk 0:13:37]}  exd5 {[%clk 0:15:10]} 7. dxc5 {[%clk 0:13:31]}  O-O {[%clk 0:15:16]} 8. O-O {[%clk 0:13:14]}  Bxc5 {[%clk 0:15:13]} 9. Bg5 {[%clk 0:12:55]}  Be6 {[%clk 0:15:20]} 10. Qd2 {[%clk 0:12:24]}  Nbd7 {[%clk 0:13:16]} 11. Rfe1 {[%clk 0:09:14]}  Re8 {[%clk 0:12:15]} 12. Bb5 {[%clk 0:08:15]}  Be7 {[%clk 0:08:04]} 13. Nd4 {[%clk 0:06:16]}  a6 {[%clk 0:07:20]} 14. Ba4 {[%clk 0:04:05]}  b5 {[%clk 0:04:52]} 15. Nc6 {[%clk 0:04:04]}  Qb6 {[%clk 0:03:42]} 16. Nxe7+ {[%clk 0:04:11]}  Rxe7 {[%clk 0:03:50]} 17. Bb3 {[%clk 0:04:20]}  h6 {[%clk 0:02:21]} 18. Nxd5 {[%clk 0:03:21]}  Bxd5 {[%clk 0:03:50]} 19. Rxe7 {[%clk 0:03:15]}  Bxb3 {[%clk 0:01:31]} 20. Bxf6 {[%clk 0:03:22]}  Qxf6 {[%clk 0:01:04]} 21. Qxd7 {[%clk 0:00:44]}  Qxb2 {[%clk 0:01:04]} 22. Rae1 {[%clk 0:03:22]}  Bxa2 {[%clk 0:01:04]} 23. Qc6 {[%clk 0:03:22]}  Rf8 {[%clk 0:01:04]} 24. Qxa6 {[%clk 0:03:22]}  Be6 {[%clk 0:01:04]} 25. Rc7 {[%clk 0:00:24]}  Qb4 {[%clk 0:00:13]} 26. Qa1 {[%clk 0:00:24]}  Qd6 {[%clk 0:00:13]} 27. Qe5 {[%clk 0:00:24]}  Qxe5 {[%clk 0:00:13]} 28. Rxe5 {[%clk 0:00:24]}  Rd8 {[%clk 0:00:16]} 29. Kf1 {[%clk 0:00:24]}  Bc4+ {[%clk 0:00:13]} 30. Ke1 {[%clk 0:00:24]}  g6 {[%clk 0:00:13]} 31. Ra7 {[%clk 0:00:24]}  Kg7 {[%clk 0:00:13]} 32. Re3 {[%clk 0:00:24]}  h5 {[%clk 0:00:13]} 33. f3 {[%clk 0:00:24]}  Rd6 {[%clk 0:00:13]} 34. h3 {[%clk 0:00:24]}  Rd8 {[%clk 0:00:13]} 35. Ra1 {[%clk 0:00:16]}  Kf6 {[%clk 0:00:49]} 36. Rd1 {[%clk 0:00:16]}  Ra8 {[%clk 0:00:49]} 37. Rd6+ {[%clk 0:00:16]}  Kg5 {[%clk 0:00:49]} 38. Kd2 {[%clk 0:00:16]}  Kf4 {[%clk 0:00:49]} 39. g4 {[%clk 0:00:16]}  h4 {[%clk 0:00:49]} 40. Rd4+ {[%clk 0:00:16]}  Kg3 {[%clk 0:00:49]} 41. f4+ {[%clk 0:00:16]}  Kf2 {[%clk 0:00:49]} 42. f5 {[%clk 0:00:16]}  g5 {[%clk 0:00:49]} 43. f6 {[%clk 0:00:16]}  Ra6 {[%clk 0:00:25]} 44. Re5 {[%clk 0:00:25]}  Rxf6 {[%clk 0:00:25]} 45. Rxg5 {[%clk 0:00:25]}  Kg3 {[%clk 0:00:25]} 46. Rf5 {[%clk 0:00:25]}  Re6 {[%clk 0:00:25]} 47. Rxf7 {[%clk 0:00:25]}  Kxh3 {[%clk 0:00:25]} 48. Rh7 {[%clk 0:00:25]}  Re2+ {[%clk 0:00:25]} 49. Kc3 {[%clk 0:00:25]}  Re3+ {[%clk 0:00:25]} 50. Kb4 {[%clk 0:00:25]}  Kg3 {[%clk 0:00:25]} 51. g5 {[%clk 0:00:25]}  h3 {[%clk 0:00:25]} 52. g6 {[%clk 0:00:27]}  Kg2 {[%clk 0:00:24]} 53. Rd2+ {[%clk 0:00:27]}  Kf1 {[%clk 0:00:24]} 54. Rh2 {[%clk 0:00:27]}  Be6 {[%clk 0:00:08]} 55. g7 {[%clk 0:00:27]}  Rg3 {[%clk 0:00:24]} 56. R2xh3 {[%clk 0:00:27]}  Bxh3 {[%clk 0:00:24]} 57. Rxh3 {[%clk 0:00:27]}  Rxg7 {[%clk 0:00:24]} 58. Kxb5 {[%clk 0:00:27]}  Rb7+ {[%clk 0:00:24]} 59. Kc6 {[%clk 0:00:27]}  Rb4 {[%clk 0:00:24]} 60. Kc5 {[%clk 0:00:27]}  Rb8 {[%clk 0:00:24]} 61. c4 {[%clk 0:00:27]}  Rc8+ {[%clk 0:00:24]} 62. Kd5 {[%clk 0:00:15]}  Rd8+ {[%clk 0:00:59]} 63. Kc6 {[%clk 0:00:21]}  Rc8+ {[%clk 0:01:08]} 64. Kb5 {[%clk 0:00:21]}  Rb8+ {[%clk 0:01:18]} 65. Ka6 {[%clk 0:00:22]}  Rc8 {[%clk 0:01:27]} 66. Rh4 {[%clk 0:00:17]}  Ke2 {[%clk 0:01:33]} 67. Kb7 {[%clk 0:00:25]} 1-0


[Site "http://www.Chess.com"]

[Event "FIDE World Rapid Chess Championship 2021"]
[White "Rapport, Richard"]
[Black "Bartel, Mateusz"]
[WhiteFideId "738590"]
[BlackFideId "1112635"]
[WhiteElo "2750"]
[BlackElo "2543"]
[Result "1-0"]
[Round "02"]
[TimeControl "900+10"]
[Date "2021.12.26"]
[WhiteClock "0:02:16"]
[BlackClock "0:01:01"]

1. e4 {[%clk 0:15:11]}  e6 {[%clk 0:15:16]} 2. d4 {[%clk 0:14:58]}  d5 {[%clk 0:15:23]} 3. e5 {[%clk 0:15:06]}  c5 {[%clk 0:15:28]} 4. c3 {[%clk 0:15:15]}  Qb6 {[%clk 0:15:36]} 5. Nf3 {[%clk 0:15:22]}  Nc6 {[%clk 0:15:43]} 6. a3 {[%clk 0:15:30]}  Nh6 {[%clk 0:15:08]} 7. Bd3 {[%clk 0:15:14]}  cxd4 {[%clk 0:14:19]} 8. cxd4 {[%clk 0:15:20]}  Nf5 {[%clk 0:14:27]} 9. Bxf5 {[%clk 0:15:28]}  exf5 {[%clk 0:14:35]} 10. Nc3 {[%clk 0:15:36]}  Be6 {[%clk 0:14:43]} 11. O-O {[%clk 0:15:39]}  Qd8 {[%clk 0:14:10]} 12. Be3 {[%clk 0:15:15]}  Be7 {[%clk 0:14:17]} 13. Ne1 {[%clk 0:15:18]}  g5 {[%clk 0:12:50]} 14. f4 {[%clk 0:15:17]}  g4 {[%clk 0:12:58]} 15. Nd3 {[%clk 0:15:16]}  Rc8 {[%clk 0:13:00]} 16. Rc1 {[%clk 0:15:04]}  h5 {[%clk 0:12:09]} 17. b4 {[%clk 0:12:42]}  h4 {[%clk 0:11:06]} 18. Qa4 {[%clk 0:12:08]}  h3 {[%clk 0:10:35]} 19. g3 {[%clk 0:12:08]}  O-O {[%clk 0:10:35]} 20. Rf2 {[%clk 0:11:16]}  a6 {[%clk 0:09:10]} 21. Rfc2 {[%clk 0:10:52]}  Na7 {[%clk 0:09:13]} 22. Nc5 {[%clk 0:10:41]}  Bxc5 {[%clk 0:04:43]} 23. bxc5 {[%clk 0:10:49]}  Qe8 {[%clk 0:04:39]} 24. Rb2 {[%clk 0:07:03]}  Qxa4 {[%clk 0:04:42]} 25. Nxa4 {[%clk 0:07:11]}  Rc7 {[%clk 0:04:50]} 26. Rcb1 {[%clk 0:07:01]}  Bc8 {[%clk 0:03:36]} 27. Nc3 {[%clk 0:07:01]}  Rd8 {[%clk 0:03:36]} 28. Bd2 {[%clk 0:07:01]}  Nc6 {[%clk 0:03:53]} 29. Ne2 {[%clk 0:06:32]}  Re7 {[%clk 0:03:49]} 30. Kf2 {[%clk 0:06:31]}  Kf8 {[%clk 0:03:54]} 31. Bc3 {[%clk 0:05:46]}  Rdd7 {[%clk 0:03:24]} 32. Rb6 {[%clk 0:05:43]}  Re6 {[%clk 0:03:32]} 33. Nc1 {[%clk 0:05:46]}  Kg7 {[%clk 0:03:19]} 34. Nd3 {[%clk 0:05:46]}  Kg6 {[%clk 0:03:26]} 35. Nb4 {[%clk 0:05:46]}  Nxb4 {[%clk 0:03:32]} 36. R1xb4 {[%clk 0:05:46]}  Kg7 {[%clk 0:03:14]} 37. Rd6 {[%clk 0:04:48]}  Kf8 {[%clk 0:03:14]} 38. Rbb6 {[%clk 0:04:34]}  Rdxd6 {[%clk 0:00:50]} 39. cxd6 {[%clk 0:04:17]}  Ke8 {[%clk 0:00:42]} 40. Ke3 {[%clk 0:04:04]}  Kd7 {[%clk 0:00:51]} 41. Ba5 {[%clk 0:03:05]}  Re8 {[%clk 0:00:50]} 42. Kd3 {[%clk 0:04:17]}  Rg8 {[%clk 0:00:50]} 43. Kc3 {[%clk 0:03:09]}  Rg6 {[%clk 0:00:30]} 44. Kb4 {[%clk 0:03:09]}  Rg8 {[%clk 0:00:30]} 45. Kc5 {[%clk 0:03:09]}  Ke6 {[%clk 0:00:30]} 46. d7+ {[%clk 0:03:09]}  Kxd7 {[%clk 0:00:30]} 47. Kxd5 {[%clk 0:03:09]}  Ke8 {[%clk 0:00:30]} 48. Rh6 {[%clk 0:03:09]}  Ke7 {[%clk 0:00:30]} 49. Bb4+ {[%clk 0:03:09]}  Kd7 {[%clk 0:00:30]} 50. Rf6 {[%clk 0:03:09]}  Ke8 {[%clk 0:00:30]} 51. Kd6 {[%clk 0:03:09]}  b6 {[%clk 0:01:01]} 52. d5 {[%clk 0:02:16]}  a5 {[%clk 0:01:01]} 53. Bd2 {[%clk 0:02:16]}  Bb7 {[%clk 0:01:01]} 54. Kc7 {[%clk 0:02:16]} 1-0


[Site "http://www.Chess.com"]

[Event "FIDE World Rapid Chess Championship 2021"]
[White "Najer, Evgeniy"]
[Black "Mamedyarov, Shakhriyar"]
[WhiteFideId "4118987"]
[BlackFideId "13401319"]
[WhiteElo "2565"]
[BlackElo "2727"]
[Result "1/2-1/2"]
[Round "02"]
[TimeControl "900+10"]
[Date "2021.12.26"]
[WhiteClock "0:00:31"]
[BlackClock "0:00:27"]

1. e4 {[%clk 0:15:17]}  e5 {[%clk 0:15:10]} 2. Nf3 {[%clk 0:15:23]}  Nc6 {[%clk 0:15:18]} 3. Bb5 {[%clk 0:15:32]}  a6 {[%clk 0:15:27]} 4. Ba4 {[%clk 0:15:41]}  Nf6 {[%clk 0:15:35]} 5. O-O {[%clk 0:15:49]}  Nxe4 {[%clk 0:15:43]} 6. d4 {[%clk 0:15:46]}  b5 {[%clk 0:15:51]} 7. Bb3 {[%clk 0:15:45]}  d5 {[%clk 0:16:00]} 8. dxe5 {[%clk 0:15:48]}  Be6 {[%clk 0:16:08]} 9. c3 {[%clk 0:15:44]}  Be7 {[%clk 0:15:46]} 10. Nbd2 {[%clk 0:15:37]}  Nc5 {[%clk 0:15:47]} 11. Bc2 {[%clk 0:15:44]}  d4 {[%clk 0:15:54]} 12. cxd4 {[%clk 0:15:10]}  Nxd4 {[%clk 0:16:02]} 13. Nxd4 {[%clk 0:15:18]}  Qxd4 {[%clk 0:16:10]} 14. Nf3 {[%clk 0:15:25]}  Qxd1 {[%clk 0:16:00]} 15. Rxd1 {[%clk 0:15:33]}  O-O {[%clk 0:16:04]} 16. Nd4 {[%clk 0:15:09]}  Rfd8 {[%clk 0:14:42]} 17. Be3 {[%clk 0:15:17]}  Bd5 {[%clk 0:14:22]} 18. Ne2 {[%clk 0:15:25]}  Ne6 {[%clk 0:14:05]} 19. f4 {[%clk 0:15:17]}  c5 {[%clk 0:11:35]} 20. f5 {[%clk 0:14:31]}  Nc7 {[%clk 0:11:43]} 21. Nc3 {[%clk 0:12:44]}  Rac8 {[%clk 0:10:04]} 22. Nxd5 {[%clk 0:11:31]}  Rxd5 {[%clk 0:09:21]} 23. Bf4 {[%clk 0:09:40]}  Rcd8 {[%clk 0:08:12]} 24. Kf1 {[%clk 0:07:43]}  c4 {[%clk 0:07:11]} 25. Ke2 {[%clk 0:06:54]}  h6 {[%clk 0:05:39]} 26. g3 {[%clk 0:05:56]}  b4 {[%clk 0:04:38]} 27. Be4 {[%clk 0:05:18]}  Rd4 {[%clk 0:04:40]} 28. Bb7 {[%clk 0:02:54]}  c3 {[%clk 0:03:49]} 29. bxc3 {[%clk 0:02:56]}  bxc3 {[%clk 0:03:58]} 30. Be3 {[%clk 0:02:56]}  Rb4 {[%clk 0:03:58]} 31. Rxd8+ {[%clk 0:00:14]}  Bxd8 {[%clk 0:03:27]} 32. Bf3 {[%clk 0:00:11]}  Bg5 {[%clk 0:03:58]} 33. Bxg5 {[%clk 0:02:56]}  hxg5 {[%clk 0:03:58]} 34. Kd3 {[%clk 0:02:56]}  Ra4 {[%clk 0:03:29]} 35. Bd1 {[%clk 0:00:11]}  Ra5 {[%clk 0:02:35]} 36. Kxc3 {[%clk 0:00:22]}  Rxe5 {[%clk 0:03:29]} 37. g4 {[%clk 0:00:22]}  Re1 {[%clk 0:03:29]} 38. Rb1 {[%clk 0:00:22]}  Nd5+ {[%clk 0:03:29]} 39. Kd4 {[%clk 0:00:16]}  Nf6 {[%clk 0:02:05]} 40. h3 {[%clk 0:00:16]}  Kh7 {[%clk 0:02:05]} 41. Bc2 {[%clk 0:00:16]}  Re2 {[%clk 0:02:05]} 42. Bb3 {[%clk 0:00:16]}  Rd2+ {[%clk 0:02:05]} 43. Kc5 {[%clk 0:00:16]}  Ne4+ {[%clk 0:02:05]} 44. Kb6 {[%clk 0:00:16]}  Rd6+ {[%clk 0:00:25]} 45. Kc7 {[%clk 0:00:29]}  Rf6 {[%clk 0:00:25]} 46. Re1 {[%clk 0:00:29]}  Nc5 {[%clk 0:00:25]} 47. Bc4 {[%clk 0:00:29]}  g6 {[%clk 0:00:25]} 48. Re5 {[%clk 0:00:29]}  Na4 {[%clk 0:00:25]} 49. Ra5 {[%clk 0:00:29]}  Nc3 {[%clk 0:00:38]} 50. Bxa6 {[%clk 0:00:29]}  Nd5+ {[%clk 0:00:25]} 51. Kb7 {[%clk 0:00:29]}  Nb4 {[%clk 0:00:13]} 52. Bc4 {[%clk 0:00:21]}  Kg7 {[%clk 0:00:13]} 53. Bb3 {[%clk 0:00:21]}  gxf5 {[%clk 0:00:13]} 54. gxf5 {[%clk 0:00:21]}  Rh6 {[%clk 0:00:21]} 55. Rb5 {[%clk 0:00:21]}  Nd3 {[%clk 0:00:13]} 56. a4 {[%clk 0:00:21]}  Rxh3 {[%clk 0:00:13]} 57. a5 {[%clk 0:00:21]}  Nc5+ {[%clk 0:00:13]} 58. Rxc5 {[%clk 0:00:21]}  Rxb3+ {[%clk 0:00:13]} 59. Kc6 {[%clk 0:00:21]}  Ra3 {[%clk 0:00:13]} 60. Kb6 {[%clk 0:00:21]}  g4 {[%clk 0:00:13]} 61. a6 {[%clk 0:00:21]}  g3 {[%clk 0:00:13]} 62. a7 {[%clk 0:00:21]}  Kf6 {[%clk 0:00:20]} 63. Kb7 {[%clk 0:00:12]}  Rb3+ {[%clk 0:00:20]} 64. Kc7 {[%clk 0:00:22]}  Ra3 {[%clk 0:00:59]} 65. Kb8 {[%clk 0:00:16]}  g2 {[%clk 0:00:18]} 66. Rc1 {[%clk 0:00:24]}  Kxf5 {[%clk 0:00:11]} 67. Rg1 {[%clk 0:00:24]}  Rb3+ {[%clk 0:00:19]} 68. Kc7 {[%clk 0:00:32]}  Ra3 {[%clk 0:00:27]} 69. Kb7 {[%clk 0:00:31]} 1/2-1/2


[Site "http://www.Chess.com"]

[Event "FIDE World Rapid Chess Championship 2021"]
[White "Corrales Jimenez, Fidel"]
[Black "Artemiev, Vladislav"]
[WhiteFideId "3506690"]
[BlackFideId "24101605"]
[WhiteElo "2561"]
[BlackElo "2714"]
[Result "1/2-1/2"]
[Round "02"]
[TimeControl "900+10"]
[Date "2021.12.26"]
[WhiteClock "0:09:06"]
[BlackClock "0:00:20"]

1. e4 {[%clk 0:15:17]}  e5 {[%clk 0:15:11]} 2. Nf3 {[%clk 0:15:26]}  Nc6 {[%clk 0:15:19]} 3. d4 {[%clk 0:15:34]}  exd4 {[%clk 0:15:22]} 4. Nxd4 {[%clk 0:15:42]}  Bc5 {[%clk 0:15:09]} 5. Nb3 {[%clk 0:15:48]}  Bb6 {[%clk 0:15:12]} 6. Nc3 {[%clk 0:15:56]}  d6 {[%clk 0:15:15]} 7. Qe2 {[%clk 0:15:58]}  a5 {[%clk 0:15:14]} 8. Be3 {[%clk 0:14:46]}  a4 {[%clk 0:15:19]} 9. Bxb6 {[%clk 0:14:54]}  axb3 {[%clk 0:15:25]} 10. Be3 {[%clk 0:15:03]}  bxa2 {[%clk 0:15:20]} 11. Rxa2 {[%clk 0:15:08]}  Rxa2 {[%clk 0:15:28]} 12. Nxa2 {[%clk 0:15:16]}  Nge7 {[%clk 0:15:14]} 13. Nc3 {[%clk 0:15:03]}  O-O {[%clk 0:15:17]} 14. Qd2 {[%clk 0:14:53]}  f5 {[%clk 0:14:52]} 15. Bc4+ {[%clk 0:13:03]}  Kh8 {[%clk 0:14:59]} 16. exf5 {[%clk 0:13:12]}  Nxf5 {[%clk 0:14:03]} 17. O-O {[%clk 0:13:20]}  Ne5 {[%clk 0:08:56]} 18. Be2 {[%clk 0:13:28]}  Nxe3 {[%clk 0:07:56]} 19. Qxe3 {[%clk 0:13:35]}  h6 {[%clk 0:06:20]} 20. f4 {[%clk 0:13:09]}  Ng4 {[%clk 0:06:20]} 21. Qg3 {[%clk 0:13:35]}  Nf6 {[%clk 0:05:59]} 22. Bd3 {[%clk 0:13:21]}  c6 {[%clk 0:05:21]} 23. b3 {[%clk 0:13:26]}  Qa5 {[%clk 0:04:00]} 24. Ne4 {[%clk 0:10:00]}  Nxe4 {[%clk 0:03:04]} 25. Bxe4 {[%clk 0:10:09]}  Bf5 {[%clk 0:02:33]} 26. Bxf5 {[%clk 0:10:17]}  Qxf5 {[%clk 0:02:42]} 27. c4 {[%clk 0:10:26]}  Re8 {[%clk 0:01:24]} 28. h3 {[%clk 0:10:34]}  Re2 {[%clk 0:02:42]} 29. Kh2 {[%clk 0:10:26]}  Kh7 {[%clk 0:00:30]} 30. Rd1 {[%clk 0:10:38]}  Re4 {[%clk 0:00:14]} 31. Rxd6 {[%clk 0:10:40]}  Rxf4 {[%clk 0:00:14]} 32. Rd7 {[%clk 0:09:05]}  Qxd7 {[%clk 0:00:21]} 33. Qxf4 {[%clk 0:09:13]}  Qd3 {[%clk 0:00:25]} 34. b4 {[%clk 0:09:19]}  Kg6 {[%clk 0:00:26]} 35. c5 {[%clk 0:09:18]}  Qf5 {[%clk 0:00:19]} 36. Qc7 {[%clk 0:09:25]}  Qe4 {[%clk 0:00:26]} 37. Qxb7 {[%clk 0:09:18]}  Qe5+ {[%clk 0:00:27]} 38. Kh1 {[%clk 0:09:06]}  Qe1+ {[%clk 0:00:20]} 1/2-1/2


[Site "http://www.Chess.com"]

[Event "FIDE World Rapid Chess Championship 2021"]
[White "Onyshchuk, Volodymyr"]
[Black "Tari, Aryan"]
[WhiteFideId "14114038"]
[BlackFideId "1510045"]
[WhiteElo "2687"]
[BlackElo "2542"]
[Result "1-0"]
[Round "02"]
[TimeControl "900+10"]
[Date "2021.12.26"]
[WhiteClock "0:01:32"]
[BlackClock "0:00:12"]

1. e4 {[%clk 0:15:18]}  e5 {[%clk 0:15:19]} 2. Nf3 {[%clk 0:15:26]}  Nc6 {[%clk 0:15:27]} 3. Bc4 {[%clk 0:15:33]}  Nf6 {[%clk 0:15:35]} 4. d3 {[%clk 0:15:40]}  Bc5 {[%clk 0:15:44]} 5. Nbd2 {[%clk 0:15:43]}  O-O {[%clk 0:15:30]} 6. O-O {[%clk 0:15:50]}  d6 {[%clk 0:15:35]} 7. c3 {[%clk 0:15:57]}  a5 {[%clk 0:15:44]} 8. h3 {[%clk 0:15:46]}  h6 {[%clk 0:15:52]} 9. Re1 {[%clk 0:15:51]}  Be6 {[%clk 0:15:59]} 10. a4 {[%clk 0:15:53]}  Bxc4 {[%clk 0:15:14]} 11. dxc4 {[%clk 0:16:02]}  Nh7 {[%clk 0:14:26]} 12. Nf1 {[%clk 0:15:41]}  f5 {[%clk 0:14:32]} 13. exf5 {[%clk 0:15:26]}  Rxf5 {[%clk 0:14:38]} 14. Ng3 {[%clk 0:15:34]}  Rf7 {[%clk 0:14:26]} 15. Ne4 {[%clk 0:15:11]}  Ba7 {[%clk 0:14:18]} 16. Be3 {[%clk 0:13:43]}  Bxe3 {[%clk 0:13:35]} 17. Rxe3 {[%clk 0:13:46]}  b6 {[%clk 0:13:06]} 18. Qd5 {[%clk 0:13:17]}  Ne7 {[%clk 0:12:50]} 19. Qd3 {[%clk 0:13:01]}  Nf6 {[%clk 0:11:39]} 20. Nxf6+ {[%clk 0:13:01]}  Rxf6 {[%clk 0:12:50]} 21. Nd2 {[%clk 0:13:01]}  Qe8 {[%clk 0:11:29]} 22. Ne4 {[%clk 0:13:01]}  Rf7 {[%clk 0:11:21]} 23. b3 {[%clk 0:12:33]}  Qc6 {[%clk 0:10:55]} 24. Rf3 {[%clk 0:11:58]}  Raf8 {[%clk 0:10:18]} 25. Rxf7 {[%clk 0:12:05]}  Rxf7 {[%clk 0:10:26]} 26. Re1 {[%clk 0:12:13]}  Qa8 {[%clk 0:09:55]} 27. Qe2 {[%clk 0:11:23]}  Qc8 {[%clk 0:09:14]} 28. Qg4 {[%clk 0:11:23]}  Qf5 {[%clk 0:09:11]} 29. g3 {[%clk 0:10:57]}  Nc6 {[%clk 0:08:12]} 30. Rd1 {[%clk 0:10:05]}  Nb8 {[%clk 0:07:58]} 31. Qxf5 {[%clk 0:09:22]}  Rxf5 {[%clk 0:08:07]} 32. b4 {[%clk 0:09:16]}  Nc6 {[%clk 0:06:35]} 33. c5 {[%clk 0:08:54]}  dxc5 {[%clk 0:06:35]} 34. bxc5 {[%clk 0:08:54]}  Rf8 {[%clk 0:06:35]} 35. Rd7 {[%clk 0:09:02]}  Rf7 {[%clk 0:04:14]} 36. Rd5 {[%clk 0:08:06]}  Kf8 {[%clk 0:04:05]} 37. Kf1 {[%clk 0:08:08]}  Re7 {[%clk 0:04:34]} 38. cxb6 {[%clk 0:08:09]}  cxb6 {[%clk 0:03:13]} 39. Rb5 {[%clk 0:08:17]}  Ke8 {[%clk 0:02:05]} 40. Rxb6 {[%clk 0:08:17]}  Kd7 {[%clk 0:03:13]} 41. Rb7+ {[%clk 0:08:17]}  Ke6 {[%clk 0:03:13]} 42. Rb5 {[%clk 0:06:06]}  Kd7 {[%clk 0:02:21]} 43. Ke2 {[%clk 0:07:32]}  Kc7 {[%clk 0:02:21]} 44. Nc5 {[%clk 0:07:32]}  Re8 {[%clk 0:02:21]} 45. Rb7+ {[%clk 0:05:58]}  Kd6 {[%clk 0:02:19]} 46. Ne4+ {[%clk 0:06:02]}  Kd5 {[%clk 0:02:21]} 47. Kd3 {[%clk 0:07:32]}  Re7 {[%clk 0:02:21]} 48. Rb6 {[%clk 0:06:03]}  Rd7 {[%clk 0:02:11]} 49. c4+ {[%clk 0:04:29]}  Ke6+ {[%clk 0:02:20]} 50. Ke3 {[%clk 0:04:37]}  Rc7 {[%clk 0:02:28]} 51. Nc3 {[%clk 0:06:03]}  Kd6 {[%clk 0:02:35]} 52. Ne4+ {[%clk 0:06:03]}  Ke7 {[%clk 0:02:35]} 53. Rb5 {[%clk 0:04:40]}  Ke6 {[%clk 0:02:06]} 54. Rc5 {[%clk 0:04:40]}  Rc8 {[%clk 0:02:06]} 55. Nc3 {[%clk 0:04:40]}  Ne7 {[%clk 0:02:06]} 56. Rxc8 {[%clk 0:04:40]}  Nxc8 {[%clk 0:02:06]} 57. c5 {[%clk 0:04:40]}  Kd7 {[%clk 0:02:06]} 58. Kd3 {[%clk 0:04:40]}  Kc6 {[%clk 0:02:06]} 59. Kc4 {[%clk 0:04:40]}  Ne7 {[%clk 0:02:06]} 60. Nb5 {[%clk 0:04:40]}  Nf5 {[%clk 0:02:06]} 61. g4 {[%clk 0:03:22]}  Nh4 {[%clk 0:02:47]} 62. Nd6 {[%clk 0:03:22]}  Nf3 {[%clk 0:02:47]} 63. Ne4 {[%clk 0:03:22]}  Ng5 {[%clk 0:02:19]} 64. Nd2 {[%clk 0:02:09]}  Nxh3 {[%clk 0:02:19]} 65. Nf3 {[%clk 0:02:09]}  Nxf2 {[%clk 0:02:19]} 66. Nxe5+ {[%clk 0:02:09]}  Kc7 {[%clk 0:02:19]} 67. Kb5 {[%clk 0:02:09]}  Ne4 {[%clk 0:00:53]} 68. Nd3 {[%clk 0:01:01]}  Nf6 {[%clk 0:00:37]} 69. Nf4 {[%clk 0:00:44]}  g5 {[%clk 0:00:22]} 70. Ne6+ {[%clk 0:00:53]}  Kd7 {[%clk 0:00:31]} 71. Nd4 {[%clk 0:01:02]}  Nxg4 {[%clk 0:00:30]} 72. c6+ {[%clk 0:01:02]}  Kc7 {[%clk 0:00:35]} 73. Ne6+ {[%clk 0:01:10]}  Kc8 {[%clk 0:00:33]} 74. Kxa5 {[%clk 0:01:12]}  Ne5 {[%clk 0:00:39]} 75. Kb5 {[%clk 0:00:58]}  Nf7 {[%clk 0:00:23]} 76. a5 {[%clk 0:01:03]}  Nd6+ {[%clk 0:00:14]} 77. Kc5 {[%clk 0:01:10]}  Ne4+ {[%clk 0:00:12]} 78. Kb6 {[%clk 0:01:18]}  Nc3 {[%clk 0:00:13]} 79. a6 {[%clk 0:01:25]}  Nd5+ {[%clk 0:00:12]} 80. Kc5 {[%clk 0:01:32]} 1-0


[Site "http://www.Chess.com"]

[Event "FIDE World Rapid Chess Championship 2021"]
[White "Ghaem Maghami, Ehsan"]
[Black "Jobava, Baadur"]
[WhiteFideId "12500739"]
[BlackFideId "13601520"]
[WhiteElo "2553"]
[BlackElo "2679"]
[Result "0-1"]
[Round "02"]
[TimeControl "900+10"]
[Date "2021.12.26"]
[WhiteClock "0:00:01"]
[BlackClock "0:00:25"]

1. e4 {[%clk 0:15:17]}  c6 {[%clk 0:15:07]} 2. d4 {[%clk 0:15:21]}  d5 {[%clk 0:15:13]} 3. exd5 {[%clk 0:15:21]}  cxd5 {[%clk 0:15:20]} 4. c4 {[%clk 0:15:30]}  Nf6 {[%clk 0:15:17]} 5. Nc3 {[%clk 0:15:38]}  Nc6 {[%clk 0:14:43]} 6. Bg5 {[%clk 0:15:44]}  dxc4 {[%clk 0:14:40]} 7. Bxc4 {[%clk 0:15:46]}  h6 {[%clk 0:14:40]} 8. Be3 {[%clk 0:12:37]}  e6 {[%clk 0:14:41]} 9. Nf3 {[%clk 0:12:42]}  Bd6 {[%clk 0:14:45]} 10. O-O {[%clk 0:12:29]}  O-O {[%clk 0:14:40]} 11. Qd2 {[%clk 0:10:51]}  Ne7 {[%clk 0:14:10]} 12. Bd3 {[%clk 0:10:58]}  Nf5 {[%clk 0:08:55]} 13. Ne4 {[%clk 0:07:24]}  Nxe4 {[%clk 0:06:49]} 14. Bxe4 {[%clk 0:07:31]}  Nxe3 {[%clk 0:05:56]} 15. Qxe3 {[%clk 0:06:46]}  Qb6 {[%clk 0:05:11]} 16. Ne5 {[%clk 0:05:27]}  Be7 {[%clk 0:03:00]} 17. Bc2 {[%clk 0:03:17]}  Rd8 {[%clk 0:02:10]} 18. Qd3 {[%clk 0:02:12]}  Bf6 {[%clk 0:02:11]} 19. Rfd1 {[%clk 0:02:12]}  Kf8 {[%clk 0:02:11]} 20. Qa3+ {[%clk 0:02:12]}  Qd6 {[%clk 0:02:11]} 21. Qf3 {[%clk 0:00:33]}  Bd7 {[%clk 0:02:20]} 22. Qxb7 {[%clk 0:00:33]}  Be8 {[%clk 0:02:20]} 23. Bb3 {[%clk 0:00:33]}  a5 {[%clk 0:02:20]} 24. Qe4 {[%clk 0:00:33]}  Rab8 {[%clk 0:02:20]} 25. Rac1 {[%clk 0:00:33]}  a4 {[%clk 0:02:20]} 26. Bc2 {[%clk 0:00:33]}  Rb4 {[%clk 0:00:56]} 27. Nf3 {[%clk 0:00:09]}  Rxb2 {[%clk 0:00:56]} 28. Qh7 {[%clk 0:00:09]}  Qf4 {[%clk 0:00:56]} 29. Be4 {[%clk 0:00:09]}  Re2 {[%clk 0:00:56]} 30. Bc6 {[%clk 0:00:09]}  Bxc6 {[%clk 0:00:56]} 31. Rxc6 {[%clk 0:00:09]}  Rxd4 {[%clk 0:00:56]} 32. Qh8+ {[%clk 0:00:09]}  Ke7 {[%clk 0:00:56]} 33. Rdc1 {[%clk 0:00:09]}  Rd7 {[%clk 0:00:25]} 34. Qa8 {[%clk 0:00:01]}  Bd4 {[%clk 0:00:25]} 35. Kh1 {[%clk 0:00:01]}  Rxf2 {[%clk 0:00:25]} 36. Rc8 {[%clk 0:00:01]}  Kf6 {[%clk 0:00:25]} 37. Qc6 {[%clk 0:00:01]} 0-1


[Site "http://www.Chess.com"]

[Event "FIDE World Rapid Chess Championship 2021"]
[White "Movsesian, Sergei"]
[Black "Lima, Darcy"]
[WhiteFideId "310204"]
[BlackFideId "2100045"]
[WhiteElo "2667"]
[BlackElo "2505"]
[Result "1/2-1/2"]
[Round "02"]
[TimeControl "900+10"]
[Date "2021.12.26"]
[WhiteClock "0:05:00"]
[BlackClock "0:08:51"]

1. e4 {[%clk 0:15:18]}  c5 {[%clk 0:15:14]} 2. Nf3 {[%clk 0:15:25]}  d6 {[%clk 0:15:22]} 3. d4 {[%clk 0:15:27]}  cxd4 {[%clk 0:15:30]} 4. Nxd4 {[%clk 0:15:35]}  Nf6 {[%clk 0:15:38]} 5. Nc3 {[%clk 0:15:43]}  Nc6 {[%clk 0:15:47]} 6. h3 {[%clk 0:15:38]}  g6 {[%clk 0:15:42]} 7. Bc4 {[%clk 0:15:17]}  Bg7 {[%clk 0:15:45]} 8. O-O {[%clk 0:15:00]}  Nxd4 {[%clk 0:14:15]} 9. Qxd4 {[%clk 0:15:08]}  O-O {[%clk 0:14:24]} 10. Qd3 {[%clk 0:14:47]}  Be6 {[%clk 0:14:08]} 11. Bb3 {[%clk 0:13:33]}  Rc8 {[%clk 0:11:40]} 12. Bg5 {[%clk 0:13:09]}  Qa5 {[%clk 0:14:08]} 13. Qe3 {[%clk 0:12:44]}  Rfe8 {[%clk 0:10:52]} 14. Rad1 {[%clk 0:11:58]}  Bxb3 {[%clk 0:10:03]} 15. axb3 {[%clk 0:11:45]}  Qc5 {[%clk 0:09:15]} 16. Qxc5 {[%clk 0:08:36]}  Rxc5 {[%clk 0:09:23]} 17. Be3 {[%clk 0:08:45]}  Rc6 {[%clk 0:08:23]} 18. Bd4 {[%clk 0:08:42]}  a6 {[%clk 0:08:23]} 19. e5 {[%clk 0:06:26]}  dxe5 {[%clk 0:08:31]} 20. Bxe5 {[%clk 0:06:35]}  Rec8 {[%clk 0:08:36]} 21. Rd3 {[%clk 0:08:42]}  e6 {[%clk 0:08:32]} 22. Rfd1 {[%clk 0:06:24]}  Nd5 {[%clk 0:08:32]} 23. Nxd5 {[%clk 0:05:40]}  exd5 {[%clk 0:08:40]} 24. Bxg7 {[%clk 0:05:47]}  Kxg7 {[%clk 0:08:48]} 25. c3 {[%clk 0:05:56]}  Rb6 {[%clk 0:08:51]} 26. b4 {[%clk 0:05:00]} 1/2-1/2


[Site "http://www.Chess.com"]